[Event "Rapid del Mercoledì"]
[Site "Chess.com"]
[Date "2020.05.20"]
[Round "1"]
[White "markk000"]
[Black "Mrtre7"]
[Result "0-1"]
[WhiteElo "1460"]
[BlackElo "1413"]
[TimeControl "720+3"]
[EndTime "12:18:16 PDT"]
[Termination "Mrtre7 ha vinto per abbandono"]

1. d4 {[%clk 0:12:01.6]} 1... d5 {[%clk 0:12:01.5]} 2. c4 {[%clk 0:12:00.4]}
2... c5 {[%clk 0:12:03.1]} 3. dxc5 {[%clk 0:11:27.5]} 3... d4 {[%clk 0:11:53.3]}
4. e3 {[%clk 0:11:23.2]} 4... e5 {[%clk 0:11:50.7]} 5. Nf3 {[%clk 0:11:13.5]}
5... Bg4 {[%clk 0:11:49]} 6. Be2 {[%clk 0:11:14.7]} 6... Nc6 {[%clk 0:11:34]} 7.
Nxe5 {[%clk 0:11:03.1]} 7... Bxe2 {[%clk 0:11:30]} 8. Nxc6 {[%clk 0:11:04.4]}
8... Bxd1 {[%clk 0:11:25.9]} 9. Nxd8 {[%clk 0:11:05.8]} 9... Rxd8 {[%clk
0:11:26.7]} 10. Kxd1 {[%clk 0:11:07]} 10... dxe3+ {[%clk 0:11:23.1]} 11. Ke2
{[%clk 0:11:09.3]} 11... exf2 {[%clk 0:11:14.5]} 12. Kxf2 {[%clk 0:11:08.9]}
12... Bxc5+ {[%clk 0:11:16.2]} 13. Ke2 {[%clk 0:11:00.4]} 13... Nf6 {[%clk
0:10:59.9]} 14. Bg5 {[%clk 0:11:02]} 14... Rd7 {[%clk 0:10:31.7]} 15. Bxf6
{[%clk 0:10:58.3]} 15... gxf6 {[%clk 0:10:33.6]} 16. Rf1 {[%clk 0:10:59.8]}
16... Rg8 {[%clk 0:10:24.9]} 17. g3 {[%clk 0:10:57.8]} 17... Rg4 {[%clk
0:10:19.3]} 18. Nd2 {[%clk 0:10:33.3]} 18... Rgd4 {[%clk 0:10:05.2]} 19. Rad1
{[%clk 0:10:29.5]} 19... Re7+ {[%clk 0:09:37.2]} 20. Kf3 {[%clk 0:10:19.8]}
20... Re5 {[%clk 0:08:34.4]} 21. Rfe1 {[%clk 0:08:16.6]} 21... Rd3+ {[%clk
0:06:26.4]} 22. Kg2 {[%clk 0:08:16.5]} 22... Rde3 {[%clk 0:05:20.7]} 23. Nf3
{[%clk 0:05:50.2]} 23... Re2+ {[%clk 0:04:18.6]} 24. Kf1 {[%clk 0:05:50.8]}
24... Rf2+ {[%clk 0:04:06.4]} 25. Kg1 {[%clk 0:05:08.9]} 25... Rxf3+ {[%clk
0:03:57.2]} 26. Kg2 {[%clk 0:05:04]} 26... Rf2+ {[%clk 0:03:46.4]} 27. Kh3
{[%clk 0:05:04.1]} 27... Rxb2 {[%clk 0:03:46.4]} 0-1

[Event "Rapid del Mercoledì"]
[Site "Chess.com"]
[Date "2020.05.20"]
[Round "1"]
[White "sirmale49"]
[Black "pedrak"]
[Result "0-1"]
[WhiteElo "1411"]
[BlackElo "1689"]
[TimeControl "720+3"]
[EndTime "12:22:34 PDT"]
[Termination "pedrak ha vinto per abbandono"]

1. e4 {[%clk 0:12:00.1]} 1... d5 {[%clk 0:11:58.2]} 2. e5 {[%clk 0:11:58.7]}
2... c5 {[%clk 0:11:47.8]} 3. d4 {[%clk 0:11:51.5]} 3... cxd4 {[%clk 0:11:44.2]}
4. Qxd4 {[%clk 0:11:51.5]} 4... Nc6 {[%clk 0:11:44.3]} 5. Bb5 {[%clk 0:11:36.4]}
5... a6 {[%clk 0:11:40.2]} 6. Bxc6+ {[%clk 0:11:37.7]} 6... bxc6 {[%clk
0:11:41.6]} 7. Nf3 {[%clk 0:11:34.1]} 7... Bf5 {[%clk 0:11:38.2]} 8. O-O {[%clk
0:11:18.8]} 8... e6 {[%clk 0:11:31.9]} 9. c3 {[%clk 0:11:14.7]} 9... Qd7 {[%clk
0:11:14]} 10. Be3 {[%clk 0:10:53.7]} 10... c5 {[%clk 0:11:05.1]} 11. Qd2 {[%clk
0:10:54.2]} 11... Bxb1 {[%clk 0:10:54.2]} 12. Raxb1 {[%clk 0:10:52.2]} 12... Rb8
{[%clk 0:10:50.4]} 13. Qc2 {[%clk 0:10:32.7]} 13... Nh6 {[%clk 0:10:16.6]} 14.
Ng5 {[%clk 0:10:29.5]} 14... Nf5 {[%clk 0:10:14.6]} 15. Bf4 {[%clk 0:10:13.9]}
15... Be7 {[%clk 0:10:12.5]} 16. Nf3 {[%clk 0:09:26.6]} 16... O-O {[%clk
0:10:03.6]} 17. g4 {[%clk 0:09:05.8]} 17... Nh4 {[%clk 0:09:59]} 18. Ng5 {[%clk
0:08:42.4]} 18... Bxg5 {[%clk 0:09:51.9]} 19. Bxg5 {[%clk 0:08:38.9]} 19... Nf3+
{[%clk 0:09:52]} 20. Kg2 {[%clk 0:08:24.9]} 20... Nxg5 {[%clk 0:09:52.6]} 21. h4
{[%clk 0:08:11.6]} 21... Ne4 {[%clk 0:09:40.2]} 22. f3 {[%clk 0:08:11.1]} 22...
Nd6 {[%clk 0:09:37.8]} 23. exd6 {[%clk 0:08:09.7]} 23... Qxd6 {[%clk 0:09:39.5]}
24. f4 {[%clk 0:08:03.7]} 24... Rfd8 {[%clk 0:09:29.2]} 25. Rbd1 {[%clk
0:07:56.1]} 25... Qb6 {[%clk 0:09:21.8]} 26. b3 {[%clk 0:07:51.5]} 26... d4
{[%clk 0:09:08.2]} 27. c4 {[%clk 0:07:46.3]} 27... Qc6+ {[%clk 0:09:01]} 28. Kg3
{[%clk 0:07:41.9]} 28... a5 {[%clk 0:08:54.7]} 29. Rfe1 {[%clk 0:07:37.5]} 29...
Qd6 {[%clk 0:08:39.1]} 30. Rd3 {[%clk 0:07:31.4]} 30... Rb7 {[%clk 0:08:37]} 31.
Re5 {[%clk 0:07:17.9]} 31... f6 {[%clk 0:08:31.8]} 32. Re2 {[%clk 0:06:57.8]}
32... e5 {[%clk 0:08:30.8]} 33. fxe5 {[%clk 0:06:29.3]} 33... fxe5 {[%clk
0:08:31.6]} 34. Re4 {[%clk 0:06:11]} 34... Rf8 {[%clk 0:08:14.8]} 35. Qd2 {[%clk
0:05:50.8]} 35... Ra7 {[%clk 0:07:05.3]} 36. a4 {[%clk 0:05:48.5]} 36... h6
{[%clk 0:06:52.2]} 37. Qe2 {[%clk 0:05:05.3]} 37... Re7 {[%clk 0:06:42.1]} 38.
Qd2 {[%clk 0:04:47]} 38... Qc7 {[%clk 0:06:42.2]} 39. g5 {[%clk 0:04:41]} 39...
hxg5 {[%clk 0:06:27.6]} 40. Qxg5 {[%clk 0:04:38]} 40... Rf6 {[%clk 0:06:08]} 41.
h5 {[%clk 0:04:26.9]} 41... Qd6 {[%clk 0:05:55.8]} 42. Rf3 {[%clk 0:03:35.1]}
42... Rxf3+ {[%clk 0:05:48.9]} 43. Kxf3 {[%clk 0:03:36.5]} 43... Qf6+ {[%clk
0:05:39.5]} 44. Qxf6 {[%clk 0:03:31.1]} 44... gxf6 {[%clk 0:05:40.8]} 45. Kg4
{[%clk 0:03:26.5]} 45... Rh7 {[%clk 0:05:34.9]} 46. Kf5 {[%clk 0:03:22.6]} 46...
Kf7 {[%clk 0:05:35.9]} 47. Kg4 {[%clk 0:03:18.9]} 47... Ke6 {[%clk 0:05:34.4]}
48. Re1 {[%clk 0:03:18.7]} 48... f5+ {[%clk 0:05:34.2]} 49. Kg5 {[%clk
0:03:16.6]} 49... Rg7+ {[%clk 0:05:31.6]} 50. Kh6 {[%clk 0:03:14.6]} 50... Kf6
{[%clk 0:05:26.5]} 51. Rxe5 {[%clk 0:03:11.6]} 51... Rd7 {[%clk 0:05:20.4]} 52.
Rxc5 {[%clk 0:02:56.1]} 52... d3 {[%clk 0:05:22]} 53. Rc6+ {[%clk 0:02:53.7]}
53... Ke5 {[%clk 0:05:22.9]} 54. Kg6 {[%clk 0:02:50.5]} 54... d2 {[%clk
0:05:23]} 55. Rf6 {[%clk 0:02:50.9]} 55... Rd6 {[%clk 0:05:18.1]} 0-1

[Event "Rapid del Mercoledì"]
[Site "Chess.com"]
[Date "2020.05.20"]
[Round "1"]
[White "fausto2p"]
[Black "riccardocanossa"]
[Result "0-1"]
[WhiteElo "1196"]
[BlackElo "1464"]
[TimeControl "720+3"]
[EndTime "12:25:08 PDT"]
[Termination "riccardocanossa ha vinto per tempo"]

1. d4 {[%clk 0:12:00.3]} 1... Nf6 {[%clk 0:11:57.7]} 2. c4 {[%clk 0:12:01]} 2...
g6 {[%clk 0:11:57.7]} 3. Nc3 {[%clk 0:12:02.1]} 3... Bg7 {[%clk 0:11:57.9]} 4.
e4 {[%clk 0:12:03.3]} 4... d6 {[%clk 0:12:00.2]} 5. f3 {[%clk 0:12:04.8]} 5...
O-O {[%clk 0:12:00.9]} 6. Be3 {[%clk 0:12:04.9]} 6... Nbd7 {[%clk 0:11:55.7]} 7.
g4 {[%clk 0:12:00.9]} 7... h6 {[%clk 0:11:42.4]} 8. Nge2 {[%clk 0:11:52.4]} 8...
e5 {[%clk 0:11:39.9]} 9. d5 {[%clk 0:11:49]} 9... Nc5 {[%clk 0:11:18.8]} 10. h4
{[%clk 0:10:59.2]} 10... a5 {[%clk 0:10:53.1]} 11. b3 {[%clk 0:10:32.7]} 11...
Bd7 {[%clk 0:10:38]} 12. Qd2 {[%clk 0:10:12.6]} 12... h5 {[%clk 0:09:47.6]} 13.
gxh5 {[%clk 0:06:51.8]} 13... gxh5 {[%clk 0:09:46.2]} 14. Bg5 {[%clk 0:06:06.5]}
14... Re8 {[%clk 0:09:29]} 15. Ng3 {[%clk 0:05:59.3]} 15... Qc8 {[%clk
0:09:02.5]} 16. Rg1 {[%clk 0:05:41]} 16... Kh7 {[%clk 0:08:20.2]} 17. O-O-O
{[%clk 0:04:19.2]} 17... Ng8 {[%clk 0:08:04.8]} 18. Nxh5 {[%clk 0:03:59.3]}
18... f6 {[%clk 0:07:34.3]} 19. Nxg7 {[%clk 0:03:48.7]} 19... fxg5 {[%clk
0:06:54]} 20. Nxe8 {[%clk 0:03:40.7]} 20... Qxe8 {[%clk 0:06:52.7]} 21. Qxg5
{[%clk 0:03:33.6]} 21... Qf8 {[%clk 0:06:27.5]} 22. Qg6+ {[%clk 0:03:13.5]}
22... Kh8 {[%clk 0:05:52.4]} 23. Qh5+ {[%clk 0:01:16.7]} 23... Qh6+ {[%clk
0:05:50.4]} 24. Qxh6+ {[%clk 0:01:08.6]} 24... Nxh6 {[%clk 0:05:52.4]} 25. Rg6
{[%clk 0:00:56]} 25... Rg8 {[%clk 0:05:48.5]} 26. Rxg8+ {[%clk 0:00:56.5]} 26...
Nxg8 {[%clk 0:05:31.6]} 27. Be2 {[%clk 0:00:54.4]} 27... b6 {[%clk 0:05:06.1]}
28. Rg1 {[%clk 0:00:55]} 28... Nf6 {[%clk 0:05:00.4]} 29. Nb5 {[%clk 0:00:48.1]}
29... Bxb5 {[%clk 0:04:49.6]} 30. cxb5 {[%clk 0:00:49.6]} 30... Ncd7 {[%clk
0:04:40.5]} 31. Bf1 {[%clk 0:00:42.3]} 31... Nc5 {[%clk 0:04:31.9]} 32. Kc2
{[%clk 0:00:40.1]} 32... Kh7 {[%clk 0:04:26.8]} 33. Bh3 {[%clk 0:00:26.5]} 33...
Kh6 {[%clk 0:04:21]} 34. Bf5 {[%clk 0:00:21.6]} 34... Kh5 {[%clk 0:03:48.8]} 35.
Rg6 {[%clk 0:00:12.5]} 35... Nfd7 {[%clk 0:03:41.8]} 36. Rg8 {[%clk 0:00:03]}
36... Nf6 {[%clk 0:02:49.4]} 0-1

[Event "Rapid del Mercoledì"]
[Site "Chess.com"]
[Date "2020.05.20"]
[Round "2"]
[White "fausto2p"]
[Black "sirmale49"]
[Result "0-1"]
[WhiteElo "1190"]
[BlackElo "1415"]
[TimeControl "720+3"]
[EndTime "12:33:32 PDT"]
[Termination "sirmale49 ha vinto per abbandono"]

1. d4 {[%clk 0:12:02.9]} 1... d5 {[%clk 0:12:00.3]} 2. c4 {[%clk 0:12:04.4]}
2... e5 {[%clk 0:12:01.4]} 3. dxe5 {[%clk 0:12:04.9]} 3... d4 {[%clk 0:12:03.5]}
4. Nf3 {[%clk 0:12:06.3]} 4... Bg4 {[%clk 0:12:03.9]} 5. Nxd4 {[%clk 0:11:57.7]}
5... Nc6 {[%clk 0:12:02.1]} 6. Nxc6 {[%clk 0:11:51.1]} 6... Qxd1+ {[%clk
0:12:01.7]} 7. Kxd1 {[%clk 0:11:52.4]} 7... bxc6 {[%clk 0:12:03.8]} 8. f3 {[%clk
0:11:45]} 8... Be6 {[%clk 0:12:04.7]} 9. b3 {[%clk 0:11:42]} 9... O-O-O+ {[%clk
0:12:05.3]} 10. Ke1 {[%clk 0:11:37]} 10... Bb4+ {[%clk 0:12:06.4]} 11. Kf2
{[%clk 0:11:32.8]} 11... Ne7 {[%clk 0:12:01.9]} 12. g4 {[%clk 0:11:20.9]} 12...
Bc5+ {[%clk 0:11:45.5]} 13. Be3 {[%clk 0:11:15]} 13... Bxe3+ {[%clk 0:11:42.1]}
14. Kxe3 {[%clk 0:11:14.5]} 14... Ng6 {[%clk 0:11:43.6]} 15. Bg2 {[%clk
0:10:53.4]} 15... Nxe5 {[%clk 0:11:39]} 16. h3 {[%clk 0:10:47.4]} 16... Kb7
{[%clk 0:11:23.4]} 17. Nc3 {[%clk 0:10:40.1]} 17... f5 {[%clk 0:11:16.6]} 18.
gxf5 {[%clk 0:10:32.9]} 18... Bxf5 {[%clk 0:11:17]} 19. f4 {[%clk 0:10:29.4]}
19... Ng6 {[%clk 0:11:11.4]} 20. h4 {[%clk 0:10:11.9]} 20... Rhe8+ {[%clk
0:11:10.8]} 21. Kf3 {[%clk 0:10:04.1]} 21... h5 {[%clk 0:10:51.6]} 22. e4 {[%clk
0:09:59.1]} 22... Bg4+ {[%clk 0:10:53.1]} 23. Kg3 {[%clk 0:09:53.2]} 23... Rd3+
{[%clk 0:10:54]} 24. Kh2 {[%clk 0:09:31.8]} 24... Rxc3 {[%clk 0:10:54.4]} 25.
Rad1 {[%clk 0:09:25.5]} 25... Nxf4 {[%clk 0:10:54.8]} 26. Rhe1 {[%clk
0:09:10.9]} 26... Bxd1 {[%clk 0:10:46.8]} 27. Rxd1 {[%clk 0:09:11]} 27... Nxg2
{[%clk 0:10:48.2]} 28. Kxg2 {[%clk 0:09:11.9]} 28... Rxe4 {[%clk 0:10:49.1]} 29.
Rf1 {[%clk 0:08:57.1]} 29... Rxh4 {[%clk 0:10:49.1]} 30. Rf7 {[%clk 0:08:53.4]}
30... Rd4 {[%clk 0:10:49.6]} 31. Rxg7 {[%clk 0:08:48.5]} 31... Rd2+ {[%clk
0:10:50.8]} 32. Kh1 {[%clk 0:08:46.4]} 32... Rc1+ {[%clk 0:10:52.5]} 33. Rg1
{[%clk 0:08:47.6]} 33... Rxg1+ {[%clk 0:10:53.9]} 34. Kxg1 {[%clk 0:08:48.9]}
34... Rxa2 {[%clk 0:10:55.6]} 35. Kf1 {[%clk 0:08:48]} 35... Ka6 {[%clk
0:10:57.3]} 0-1

[Event "Rapid del Mercoledì"]
[Site "Chess.com"]
[Date "2020.05.20"]
[Round "2"]
[White "riccardocanossa"]
[Black "markk000"]
[Result "0-1"]
[WhiteElo "1425"]
[BlackElo "1470"]
[TimeControl "720+3"]
[EndTime "12:37:19 PDT"]
[Termination "markk000 ha vinto per abbandono"]

1. d4 {[%clk 0:12:02.9]} 1... Nf6 {[%clk 0:12:00.7]} 2. c4 {[%clk 0:12:04.2]}
2... g6 {[%clk 0:12:02.5]} 3. Nc3 {[%clk 0:12:03.7]} 3... Bg7 {[%clk 0:12:04.5]}
4. Nf3 {[%clk 0:12:03]} 4... O-O {[%clk 0:12:06.4]} 5. e4 {[%clk 0:11:59.1]}
5... d6 {[%clk 0:12:08.4]} 6. Be2 {[%clk 0:11:58.9]} 6... Nbd7 {[%clk
0:12:04.1]} 7. O-O {[%clk 0:11:41.7]} 7... c5 {[%clk 0:12:05.7]} 8. d5 {[%clk
0:11:33.9]} 8... Nb6 {[%clk 0:12:00.6]} 9. a4 {[%clk 0:11:18.7]} 9... Ne8 {[%clk
0:10:23.6]} 10. Be3 {[%clk 0:10:38.6]} 10... a5 {[%clk 0:10:04.3]} 11. Qc2
{[%clk 0:10:07.4]} 11... f5 {[%clk 0:09:49.8]} 12. exf5 {[%clk 0:09:54.4]} 12...
Bxf5 {[%clk 0:09:52.7]} 13. Bd3 {[%clk 0:09:51.7]} 13... Nxc4 {[%clk 0:09:20.2]}
14. Bxf5 {[%clk 0:09:36.8]} 14... Rxf5 {[%clk 0:09:10.8]} 15. Ng5 {[%clk
0:07:02.1]} 15... Nxe3 {[%clk 0:08:39.5]} 16. fxe3 {[%clk 0:06:45.4]} 16... Rxg5
{[%clk 0:08:26.1]} 0-1

[Event "Rapid del Mercoledì"]
[Site "Chess.com"]
[Date "2020.05.20"]
[Round "2"]
[White "pedrak"]
[Black "Mrtre7"]
[Result "1-0"]
[WhiteElo "1692"]
[BlackElo "1409"]
[TimeControl "720+3"]
[EndTime "12:41:01 PDT"]
[Termination "pedrak ha vinto per abbandono"]

1. d4 {[%clk 0:12:02.9]} 1... d5 {[%clk 0:11:58.8]} 2. Nf3 {[%clk 0:11:59.4]}
2... Nf6 {[%clk 0:11:57]} 3. Bf4 {[%clk 0:11:59.8]} 3... c5 {[%clk 0:11:50.5]}
4. e3 {[%clk 0:11:58.9]} 4... Bf5 {[%clk 0:11:48.6]} 5. c3 {[%clk 0:11:58.6]}
5... Nc6 {[%clk 0:11:46.6]} 6. dxc5 {[%clk 0:11:59.1]} 6... a5 {[%clk
0:11:38.5]} 7. Bb5 {[%clk 0:11:59]} 7... e6 {[%clk 0:11:35.1]} 8. b4 {[%clk
0:11:59.3]} 8... axb4 {[%clk 0:11:23.5]} 9. cxb4 {[%clk 0:12:00]} 9... Be7
{[%clk 0:09:36.3]} 10. Nc3 {[%clk 0:11:50.1]} 10... O-O {[%clk 0:09:35.2]} 11.
Bxc6 {[%clk 0:11:50.7]} 11... bxc6 {[%clk 0:09:37.1]} 12. O-O {[%clk 0:11:51.5]}
12... Nh5 {[%clk 0:09:24.2]} 13. Bg3 {[%clk 0:11:43.8]} 13... Nxg3 {[%clk
0:09:19.1]} 14. hxg3 {[%clk 0:11:41.3]} 14... Bf6 {[%clk 0:09:19.7]} 15. Nd4
{[%clk 0:11:35.3]} 15... Qc7 {[%clk 0:08:24]} 16. Qd2 {[%clk 0:11:30.3]} 16...
Bg6 {[%clk 0:08:19.4]} 17. a4 {[%clk 0:11:05]} 17... e5 {[%clk 0:08:13.5]} 18.
Nde2 {[%clk 0:11:00]} 18... d4 {[%clk 0:06:36.7]} 19. exd4 {[%clk 0:10:51]}
19... exd4 {[%clk 0:06:38.8]} 20. Nxd4 {[%clk 0:10:37.7]} 20... Rad8 {[%clk
0:06:39.8]} 21. Nce2 {[%clk 0:10:38.2]} 21... Rfe8 {[%clk 0:06:36.1]} 22. Rad1
{[%clk 0:10:20.6]} 22... Bh5 {[%clk 0:06:22.4]} 23. f3 {[%clk 0:10:18.7]} 23...
Rxe2 {[%clk 0:06:06.6]} 24. Qxe2 {[%clk 0:10:15.2]} 24... Bxd4+ {[%clk
0:05:45.2]} 25. Rxd4 {[%clk 0:10:15.2]} 25... Ra8 {[%clk 0:04:26.9]} 26. Rfd1
{[%clk 0:10:07.2]} 26... g6 {[%clk 0:04:22.4]} 27. Rd7 {[%clk 0:09:55.2]} 27...
Qxg3 {[%clk 0:04:18.3]} 28. Qe7 {[%clk 0:09:50.4]} 28... g5 {[%clk 0:04:16.1]}
29. Rd8+ {[%clk 0:09:39.6]} 29... Rxd8 {[%clk 0:04:16.4]} 30. Rxd8+ {[%clk
0:09:40.8]} 30... Kg7 {[%clk 0:04:17.2]} 31. Qf8+ {[%clk 0:09:42.3]} 31... Kf6
{[%clk 0:03:43.6]} 32. Qd6+ {[%clk 0:09:38.2]} 32... Qxd6 {[%clk 0:03:35.3]} 33.
Rxd6+ {[%clk 0:09:39.4]} 33... Ke7 {[%clk 0:03:34.1]} 34. Rxc6 {[%clk
0:09:40.6]} 34... Kd7 {[%clk 0:03:36.1]} 35. Rd6+ {[%clk 0:09:40.6]} 35... Kc7
{[%clk 0:03:37.9]} 36. b5 {[%clk 0:09:39.8]} 36... f5 {[%clk 0:03:31.5]} 37. a5
{[%clk 0:09:38.7]} 37... Be8 {[%clk 0:03:32.6]} 38. Rb6 {[%clk 0:09:26.3]} 38...
h5 {[%clk 0:03:29]} 39. a6 {[%clk 0:09:27.2]} 39... Bf7 {[%clk 0:03:22.2]} 40.
Rb7+ {[%clk 0:09:26.4]} 40... Kc8 {[%clk 0:03:23.8]} 41. Rxf7 {[%clk 0:09:27.3]}
1-0

[Event "Rapid del Mercoledì"]
[Site "Chess.com"]
[Date "2020.05.20"]
[Round "3"]
[White "sirmale49"]
[Black "riccardocanossa"]
[Result "0-1"]
[WhiteElo "1407"]
[BlackElo "1459"]
[TimeControl "720+3"]
[EndTime "12:50:15 PDT"]
[Termination "riccardocanossa ha vinto per abbandono"]

1. e4 {[%clk 0:12:01.3]} 1... e5 {[%clk 0:11:56.5]} 2. f4 {[%clk 0:12:02.8]}
2... Bc5 {[%clk 0:11:36.8]} 3. Nf3 {[%clk 0:12:01.6]} 3... d6 {[%clk 0:11:31.2]}
4. Bc4 {[%clk 0:12:01]} 4... Nc6 {[%clk 0:11:11.3]} 5. c3 {[%clk 0:11:51]} 5...
Nf6 {[%clk 0:10:58.2]} 6. d3 {[%clk 0:11:46.9]} 6... O-O {[%clk 0:10:18]} 7. a3
{[%clk 0:11:39.1]} 7... Bg4 {[%clk 0:10:13.7]} 8. b4 {[%clk 0:11:30.8]} 8... Bb6
{[%clk 0:10:01.5]} 9. a4 {[%clk 0:11:29.7]} 9... a6 {[%clk 0:10:00]} 10. b5
{[%clk 0:11:28.9]} 10... axb5 {[%clk 0:09:44.5]} 11. Bxb5 {[%clk 0:11:30.1]}
11... Qe7 {[%clk 0:09:38.3]} 12. Bxc6 {[%clk 0:11:14.3]} 12... bxc6 {[%clk
0:09:37.6]} 13. Qb3 {[%clk 0:11:03.8]} 13... Rab8 {[%clk 0:08:56.9]} 14. Qc4
{[%clk 0:10:46.8]} 14... exf4 {[%clk 0:08:38.4]} 15. Bxf4 {[%clk 0:10:21.1]}
15... d5 {[%clk 0:08:28.5]} 16. Qa2 {[%clk 0:10:09]} 16... dxe4 {[%clk
0:08:20.1]} 17. Nd4 {[%clk 0:09:57.1]} 17... exd3+ {[%clk 0:08:18.4]} 18. Kd2
{[%clk 0:09:41.5]} 18... Bxd4 {[%clk 0:08:11.5]} 19. cxd4 {[%clk 0:09:41]} 19...
Qe2+ {[%clk 0:08:08]} 0-1

[Event "Rapid del Mercoledì"]
[Site "Chess.com"]
[Date "2020.05.20"]
[Round "3"]
[White "Mrtre7"]
[Black "fausto2p"]
[Result "1-0"]
[WhiteElo "1414"]
[BlackElo "1185"]
[TimeControl "720+3"]
[EndTime "12:55:47 PDT"]
[Termination "Mrtre7 ha vinto per abbandono"]

1. d4 {[%clk 0:12:02.9]} 1... d5 {[%clk 0:12:00.6]} 2. c4 {[%clk 0:12:03.4]}
2... c6 {[%clk 0:12:01.4]} 3. Nf3 {[%clk 0:11:59.6]} 3... Nf6 {[%clk 0:12:02.7]}
4. e3 {[%clk 0:11:56.9]} 4... dxc4 {[%clk 0:11:19.6]} 5. Bxc4 {[%clk 0:11:54.7]}
5... b5 {[%clk 0:11:20.5]} 6. Bd3 {[%clk 0:11:53.6]} 6... e6 {[%clk 0:11:12.2]}
7. Nc3 {[%clk 0:11:44.4]} 7... Bb4 {[%clk 0:11:07]} 8. O-O {[%clk 0:11:40.8]}
8... O-O {[%clk 0:11:01.8]} 9. e4 {[%clk 0:11:41.3]} 9... Nbd7 {[%clk
0:10:33.2]} 10. Bg5 {[%clk 0:11:41.6]} 10... Qa5 {[%clk 0:09:45.8]} 11. Qc2
{[%clk 0:11:11.1]} 11... h6 {[%clk 0:09:38.8]} 12. Bf4 {[%clk 0:10:41.7]} 12...
Qb6 {[%clk 0:08:55.6]} 13. a4 {[%clk 0:09:52.3]} 13... a6 {[%clk 0:08:46]} 14.
axb5 {[%clk 0:09:45.7]} 14... cxb5 {[%clk 0:08:46.2]} 15. Nxb5 {[%clk
0:09:29.8]} 15... Bb7 {[%clk 0:07:55.7]} 16. Na3 {[%clk 0:08:14.4]} 16... Bxa3
{[%clk 0:06:49.4]} 17. bxa3 {[%clk 0:08:12.3]} 17... Rac8 {[%clk 0:06:38.8]} 18.
Qe2 {[%clk 0:08:05.4]} 18... Rc3 {[%clk 0:05:55.8]} 19. Rfb1 {[%clk 0:07:36.5]}
19... Qa7 {[%clk 0:05:46]} 20. Rb2 {[%clk 0:06:21.1]} 20... Rfc8 {[%clk
0:05:38.5]} 21. Rab1 {[%clk 0:06:21.5]} 21... Rc1+ {[%clk 0:05:35.1]} 22. Bxc1
{[%clk 0:06:21.8]} 1-0

[Event "Rapid del Mercoledì"]
[Site "Chess.com"]
[Date "2020.05.20"]
[Round "3"]
[White "markk000"]
[Black "pedrak"]
[Result "0-1"]
[WhiteElo "1465"]
[BlackElo "1696"]
[TimeControl "720+3"]
[EndTime "13:03:16 PDT"]
[Termination "pedrak ha vinto per abbandono"]

1. d4 {[%clk 0:11:58.1]} 1... d5 {[%clk 0:11:55]} 2. c4 {[%clk 0:11:59.1]} 2...
e6 {[%clk 0:11:53.4]} 3. Nc3 {[%clk 0:12:01]} 3... c6 {[%clk 0:11:53.8]} 4. e4
{[%clk 0:12:00.9]} 4... dxe4 {[%clk 0:11:46.7]} 5. Nxe4 {[%clk 0:12:00.5]} 5...
Nf6 {[%clk 0:11:37.4]} 6. Bg5 {[%clk 0:12:00.6]} 6... Be7 {[%clk 0:11:38.3]} 7.
Bd3 {[%clk 0:11:08]} 7... Nxe4 {[%clk 0:11:21.8]} 8. Bxe7 {[%clk 0:11:09]} 8...
Nxf2 {[%clk 0:11:08.5]} 9. Bxd8 {[%clk 0:10:49.4]} 9... Nxd1 {[%clk 0:11:07.9]}
10. Rxd1 {[%clk 0:10:40]} 10... Kxd8 {[%clk 0:11:08.3]} 11. Nf3 {[%clk
0:10:38.2]} 11... Nd7 {[%clk 0:10:38]} 12. Ne5 {[%clk 0:10:19.2]} 12... Nxe5
{[%clk 0:10:36.5]} 13. dxe5 {[%clk 0:10:17.7]} 13... Ke7 {[%clk 0:10:37.5]} 14.
O-O {[%clk 0:10:18.5]} 14... Bd7 {[%clk 0:10:31.3]} 15. Rf3 {[%clk 0:08:49.1]}
15... Rad8 {[%clk 0:10:18.2]} 16. Rdf1 {[%clk 0:08:30.1]} 16... Be8 {[%clk
0:10:17.9]} 17. Rg3 {[%clk 0:08:15.1]} 17... g6 {[%clk 0:10:10.5]} 18. Rgf3
{[%clk 0:07:03.7]} 18... Rd4 {[%clk 0:10:07.2]} 19. Kf2 {[%clk 0:06:08]} 19...
h5 {[%clk 0:10:06.7]} 20. Ke3 {[%clk 0:05:52]} 20... c5 {[%clk 0:10:05.8]} 21.
Rf4 {[%clk 0:03:59.2]} 21... Rxf4 {[%clk 0:09:58.8]} 22. Rxf4 {[%clk 0:04:01]}
22... Bc6 {[%clk 0:09:59.3]} 23. g3 {[%clk 0:03:41.5]} 23... Rd8 {[%clk
0:09:57.2]} 24. a3 {[%clk 0:03:22.4]} 24... a6 {[%clk 0:09:57.4]} 25. h4 {[%clk
0:03:12.8]} 25... b5 {[%clk 0:09:56.4]} 26. b3 {[%clk 0:02:59.6]} 26... Rb8
{[%clk 0:09:47]} 27. b4 {[%clk 0:02:38]} 27... cxb4 {[%clk 0:09:33.8]} 28. axb4
{[%clk 0:02:34.3]} 28... bxc4 {[%clk 0:09:17.8]} 29. Rxc4 {[%clk 0:02:34.2]}
29... Bb5 {[%clk 0:09:04.5]} 30. Rc7+ {[%clk 0:02:12.5]} 30... Kf8 {[%clk
0:09:05.3]} 31. Be4 {[%clk 0:01:59]} 31... Be8 {[%clk 0:08:46.7]} 32. Bb7 {[%clk
0:01:48.4]} 32... Bb5 {[%clk 0:08:37.2]} 33. Be4 {[%clk 0:01:40]} 33... Re8
{[%clk 0:08:35]} 34. Kf4 {[%clk 0:00:58.2]} 34... Re7 {[%clk 0:08:34.7]} 35. Rc2
{[%clk 0:00:50.4]} 35... Rd7 {[%clk 0:08:33.4]} 36. Rc8+ {[%clk 0:00:44.6]}
36... Kg7 {[%clk 0:08:34.4]} 37. Ke3 {[%clk 0:00:37.8]} 37... Ra7 {[%clk
0:08:12.6]} 38. Rc2 {[%clk 0:00:24]} 38... a5 {[%clk 0:08:12.5]} 39. Ra2 {[%clk
0:00:20.8]} 39... a4 {[%clk 0:08:14]} 40. Bc2 {[%clk 0:00:21.8]} 40... f6 {[%clk
0:08:13]} 41. exf6+ {[%clk 0:00:23.5]} 41... Kxf6 {[%clk 0:08:14.6]} 42. Bd3
{[%clk 0:00:26]} 42... Bxd3 {[%clk 0:08:11.5]} 43. Kxd3 {[%clk 0:00:28.9]} 43...
Ke5 {[%clk 0:08:13.3]} 44. Kc3 {[%clk 0:00:30.9]} 44... Kd5 {[%clk 0:08:14]} 45.
b5 {[%clk 0:00:32.4]} 45... e5 {[%clk 0:08:08.7]} 46. b6 {[%clk 0:00:29.6]}
46... Rb7 {[%clk 0:08:10.4]} 47. Rxa4 {[%clk 0:00:31.1]} 47... Rxb6 {[%clk
0:08:12]} 48. Ra5+ {[%clk 0:00:32.5]} 48... Ke6 {[%clk 0:08:13.2]} 49. Ra1
{[%clk 0:00:32.1]} 49... Rd6 {[%clk 0:08:12.3]} 50. Re1 {[%clk 0:00:33]} 50...
Kf5 {[%clk 0:08:10.8]} 51. Re3 {[%clk 0:00:26.2]} 51... e4 {[%clk 0:08:10.5]}
52. Kc4 {[%clk 0:00:26.2]} 52... Rd1 {[%clk 0:08:07.4]} 53. Kc3 {[%clk
0:00:27.4]} 53... Rd3+ {[%clk 0:08:01.8]} 54. Rxd3 {[%clk 0:00:28.2]} 54... exd3
{[%clk 0:08:03.8]} 55. Kxd3 {[%clk 0:00:31.1]} 55... Kg4 {[%clk 0:08:05.9]} 56.
Ke4 {[%clk 0:00:33.8]} 56... Kxg3 {[%clk 0:08:07.8]} 57. Ke5 {[%clk 0:00:25.8]}
57... Kxh4 {[%clk 0:08:09.3]} 58. Kf4 {[%clk 0:00:28.3]} 58... g5+ {[%clk
0:08:08.8]} 59. Kf3 {[%clk 0:00:30.6]} 59... Kh3 {[%clk 0:08:10.8]} 60. Kf2
{[%clk 0:00:31.6]} 60... Kh2 {[%clk 0:08:12.2]} 61. Kf3 {[%clk 0:00:33.6]} 61...
g4+ {[%clk 0:08:12.6]} 62. Kf2 {[%clk 0:00:36]} 62... g3+ {[%clk 0:08:14.2]} 63.
Kf1 {[%clk 0:00:38.4]} 63... g2+ {[%clk 0:08:15.9]} 64. Ke2 {[%clk 0:00:41.3]}
64... g1=Q {[%clk 0:08:17.4]} 0-1